bitfinex-derivatives/quotes_BNBF0:USTF0_20250413
["timestamp","ask_amount","ask_price","bid_price","bid_amount"]
[1744521397889,0.33762112,592.38,591.32,0.33822634]
[1744521399389,0.33762112,592.38,591.33,0.30233356]
[1744521399891,0.33762112,592.38,591.34,0.3382149]
[1744521400084,0.33762112,592.38,591.35,0.30233356]
[1744521400290,0.33762112,592.38,591.36,0.33820346]
[1744521400488,0.33762112,592.38,591.37,0.30233356]
[1744521400690,0.33762112,592.38,591.38,0.33819202]
[1744521400991,0.33762112,592.38,591.39,0.30233356]
[1744521401191,0.33762112,592.38,591.4,0.33818058]
[1744521401589,0.31045007,592.37,591.41,0.30230744]
[1744521401787,0.33762112,592.38,591.42,0.33816915]
[1744521401987,0.33762112,592.38,591.43,0.30230744]
[1744521402385,0.31044656,592.37,591.43,0.30230744]
[1744521402588,0.33762112,592.38,591.43,0.30230744]
[1744521402786,0.31044413,592.37,591.43,0.30230744]
[1744521403190,0.33762112,592.38,591.43,0.30230744]
[1744521403693,1.28024234,593.25,591.44,0.33815771]
[1744521403991,0.33713736,593.23,591.45,0.30230744]
[1744521404190,0.31043359,593.22,591.46,0.33814628]
[1744521404386,0.31043359,593.21,591.47,0.30230744]
[1744521404591,0.31043359,593.2,591.47,0.30230744]
[1744521404792,0.31043359,593.19,591.47,0.30230744]
[1744521404993,1.28024234,592.91,591.47,0.30230744]
[1744521405193,0.31043359,592.9,591.48,0.44]
[1744521405393,0.31043359,592.89,591.49,0.30230744]
[1744521405594,0.31043359,592.9,591.48,0.44]
[1744521405894,0.29393257,592.89,591.48,0.44]
[1744521406092,0.31043359,592.88,591.48,0.44]
[1744521406690,0.31043359,592.88,591.49,0.33812913]
[1744521406895,0.33734208,592.87,591.49,0.33812913]
[1744521407088,0.31043359,592.86,591.49,0.33812913]
[1744521407292,0.33735346,592.85,591.49,0.33812913]
[1744521407493,0.31043359,592.84,591.5,0.615]
[1744521407694,0.33736484,592.83,591.5,0.615]
[1744521407890,0.31043359,592.82,591.5,0.615]
[1744521408195,0.33737622,592.81,591.5,0.615]
[1744521408399,0.31041547,592.8,591.51,0.606]
[1744521408589,0.3373876,592.79,591.51,0.606]
[1744521408792,0.31041547,592.78,591.51,0.606]
[1744521408992,0.33739899,592.77,591.51,0.606]
[1744521409495,0.31041547,592.76,591.51,0.606]
[1744521409697,0.31041547,592.76,591.52,0.462]
[1744521409896,0.31041547,592.76,591.53,0.30226891]
[1744521410194,0.33741037,592.75,591.53,0.30226891]
[1744521410390,0.31041547,592.74,591.53,0.30226891]
[1744521410595,0.33742176,592.73,591.53,0.30226891]
[1744521410797,0.31041547,592.72,591.53,0.30226891]
[1744521410995,0.31041862,592.71,591.54,0.3022761]
[1744521411195,0.31041862,592.72,591.53,0.3022761]
[1744521411396,0.31041862,592.71,591.52,0.462]
[1744521411692,0.31041862,592.7,591.52,0.462]
[1744521411896,0.64785745,592.7,591.52,0.462]
[1744521412094,0.31041862,592.69,591.52,0.462]
[1744521412294,0.33745022,592.68,591.52,0.462]
[1744521412491,0.31041862,592.67,591.52,0.462]
[1744521412695,0.33746161,592.66,591.53,0.30230287]
[1744521412899,0.31041862,592.65,591.53,0.30230287]
[1744521415396,0.337473,592.64,591.52,0.462]
[1744521416499,0.29393878,592.63,591.52,0.462]
[1744521417500,0.63141747,592.63,591.52,0.462]
[1744521418194,0.33747869,592.63,591.52,0.462]
[1744521419399,0.2938668,592.62,591.52,0.462]
[1744521420807,0.63135119,592.62,591.52,0.462]
[1744521421300,0.33748439,592.62,591.52,0.462]
[1744521422501,0.29387176,592.61,591.52,1.159]
[1744521423602,0.31044864,592.6,591.53,0.30230602]
[1744521424700,0.33748439,592.62,591.52,1.159]
[1744521424901,0.31042661,592.61,591.53,0.30228401]
[1744521425503,0.29396982,592.6,591.53,0.30228401]
[1744521425703,0.31042661,592.59,591.53,0.30228401]
[1744521427402,0.31042661,592.61,591.52,1.159]
[1744521427702,0.31042661,592.61,591.53,0.713]
[1744521428503,0.29396858,592.6,591.53,0.713]
[1744521428703,0.31042661,592.59,591.53,0.713]
[1744521429805,0.31044098,592.58,591.53,0.713]
[1744521430000,0.31044098,592.59,591.53,0.713]
[1744521430205,0.31044098,592.58,591.53,0.713]
[1744521430404,0.31044098,592.61,591.53,0.713]
[1744521431604,0.29398348,592.6,591.53,0.713]
[1744521431804,0.31044098,592.59,591.53,0.713]
[1744521432507,0.29398348,592.6,591.53,0.713]
[1744521433302,0.33748439,592.62,591.53,0.713]
[1744521433606,0.29396113,592.59,591.53,0.713]
[1744521434809,0.29396113,592.59,591.53,1.338]
[1744521435409,0.29396113,592.59,591.54,0.33810055]
[1744521436210,0.33748439,592.62,591.54,0.33810055]
[1744521436509,0.33748439,592.62,591.54,0.85210055]
[1744521439812,0.33748439,592.62,591.54,1.44510055]
[1744521440511,0.31037113,592.61,591.55,0.30222878]
[1744521440807,0.33748439,592.62,591.54,1.44510055]
[1744521441011,0.31037093,592.61,591.55,0.30222858]
[1744521441214,0.31037093,592.61,591.56,0.33808912]
[1744521441409,0.31037093,592.61,591.57,0.30222858]
[1744521441606,0.31037093,592.61,591.57,0.64031198]
[1744521441808,0.31037093,592.61,591.58,0.30222858]
[1744521442509,0.33748439,592.62,591.59,0.33807197]
[1744521443419,0.33748439,592.62,591.6,0.30220336]
[1744521444018,0.33748439,592.62,591.59,0.33807197]
[1744521444222,0.33748439,592.62,591.6,0.30220381]
[1744521445020,0.33748439,592.62,591.6,0.64027007]
[1744521445216,0.33748439,592.62,591.61,0.30220381]
[1744521445418,0.33748439,592.62,591.61,0.84420381]
[1744521445722,0.33748439,592.62,591.62,0.30220381]
[1744521448020,0.33748439,592.62,591.63,0.33804911]
[1744521448221,0.33748439,592.62,591.64,0.30220381]
[1744521448424,0.33748439,592.62,591.65,0.33803769]
[1744521448622,0.33748439,592.62,591.66,0.30220381]
[1744521448822,0.33748439,592.62,591.65,0.33803769]
[1744521449020,0.33748439,592.62,591.66,0.30216676]
[1744521449221,0.33748439,592.62,591.67,0.33802626]
[1744521449436,0.33748439,592.62,591.68,0.30216676]
[1744521449627,0.33748439,592.62,591.68,0.64018731]
[1744521449828,0.33748439,592.62,591.69,0.30216676]
[1744521451724,0.33748439,592.62,591.7,0.541]
[1744521451930,0.33748439,592.62,591.71,0.30216676]
[1744521455431,1.28024234,593.48,591.72,0.3379977]
[1744521455631,0.29377377,592.83,591.73,0.3021584]
[1744521455831,0.31029662,592.82,591.74,0.64]
[1744521456026,0.31029662,593.45,591.75,0.64013896]
[1744521456229,0.31029662,593.44,591.76,0.3021584]
[1744521456429,0.31029662,593.43,591.76,0.3021584]
[1744521456631,0.31029662,593.42,591.76,0.3021584]
[1744521456831,0.33704078,593.4,591.77,0.33796914]
[1744521457032,0.31029662,593.39,591.78,0.3021584]
[1744521457332,0.33705782,593.37,591.79,0.33795772]
[1744521457635,0.31029662,593.36,591.8,0.3021584]
[1744521457832,0.33707486,593.34,591.8,0.3021584]
[1744521458032,0.31029662,593.33,591.8,0.3021584]
[1744521458232,0.33707486,593.34,591.8,0.3021584]
[1744521458233,0.3370919,593.31,591.8,0.3021584]
[1744521458533,0.31027074,593.3,591.81,0.30212882]
[1744521458734,0.33710895,593.28,591.8,0.30212882]
[1744521458934,0.31027074,593.27,591.81,0.96612882]
[1744521459134,0.337126,593.25,591.82,0.30212882]
[1744521459335,0.31027074,593.24,591.82,0.30212882]
[1744521459532,0.33714304,593.22,591.82,0.30212882]
[1744521459728,0.31027074,593.21,591.83,0.33793487]
[1744521459932,0.33715441,593.2,591.83,0.33793487]
[1744521460132,0.31027074,593.19,591.83,0.33793487]
[1744521460333,0.33716578,593.18,591.83,0.33793487]
[1744521460529,0.31027074,593.17,591.83,0.33793487]
[1744521460734,0.33717715,593.16,591.83,0.33793487]
[1744521460933,0.31027074,593.15,591.83,0.33793487]
[1744521461135,0.33718852,593.14,591.83,0.33793487]
[1744521461331,0.31027074,593.13,591.83,0.33793487]
[1744521461535,0.33719989,593.12,591.83,0.33793487]
[1744521461937,0.31021254,593.11,591.83,0.33793487]
[1744521463238,0.3102106,593.1,591.83,0.33793487]
[1744521463441,0.3102106,593.11,591.83,0.33793487]
[1744521463641,0.3102106,593.1,591.83,0.33793487]
[1744521464543,0.29377129,593.09,591.83,0.33793487]
[1744521464840,0.3102106,593.08,591.83,0.33793487]
[1744521465345,0.33722832,593.07,591.84,0.30209454]
[1744521465543,0.3102106,593.06,591.84,0.30209454]
[1744521465737,0.33723969,593.05,591.84,0.30209454]
[1744521465936,0.3102106,593.04,591.84,0.30209454]
[1744521466341,0.64745597,593.04,591.84,0.30209454]
[1744521466640,0.60400421,593.03,591.84,0.30209454]
[1744521466843,0.3102106,593.02,591.84,0.30209454]
[1744521467343,0.3102106,593.02,591.85,0.33792346]
[1744521467541,0.3102106,593.02,591.86,0.30209454]
[1744521467741,0.3102106,593.02,591.87,0.33791204]
[1744521467942,0.31022089,593.01,591.87,0.33791204]
[1744521468137,0.31022089,593.0,591.87,0.33791204]
[1744521468438,0.31022089,592.99,591.87,0.33791204]
[1744521468643,0.31022089,593.02,591.88,0.30208011]
[1744521468943,0.31022089,593.02,591.87,0.33791204]
[1744521469239,0.31022089,593.02,591.88,0.30208707]
[1744521469445,0.33724537,593.04,591.87,0.33791204]
[1744521469643,0.31022992,593.03,591.88,0.30208813]
[1744521470542,0.29377253,593.02,591.88,0.30208813]
[1744521470742,0.31022992,593.01,591.88,0.30208813]
[1744521471446,0.31022992,593.01,591.89,0.706]
[1744521471648,0.31022992,593.01,591.9,0.30208813]
[1744521472447,0.31022992,593.03,591.9,0.30208813]
[1744521472647,0.31022992,593.02,591.9,0.30208813]
[1744521472845,0.31022992,593.01,591.9,0.30208813]
[1744521473042,0.31022992,593.03,591.9,0.30208813]
[1744521473245,0.31022992,593.02,591.9,0.30208813]
[1744521473444,0.31022992,593.01,591.9,0.30208813]
[1744521473644,0.29377005,593.02,591.9,0.30208813]
[1744521473846,0.31022992,593.01,591.9,0.30208813]
[1744521474250,0.29377005,593.02,591.89,0.706]
[1744521474550,0.31022716,593.01,591.9,0.588]
[1744521475451,0.31022716,593.01,591.9,1.426]
[1744521477452,0.29377005,593.02,591.9,1.426]
[1744521477648,0.31022513,593.0,591.9,1.426]
[1744521477850,0.31022513,592.99,591.9,1.426]
[1744521478052,0.31022513,592.98,591.9,1.426]
[1744521478351,0.31022513,592.97,591.9,1.426]
[1744521478551,0.31022513,593.01,591.9,1.426]
[1744521481459,0.31022513,593.03,591.9,2.418]
[1744521481654,0.33724537,593.04,591.9,2.418]
[1744521482660,0.29370063,593.03,591.9,2.418]
[1744521484062,0.29370063,593.03,591.9,3.076]
[1744521484260,0.33724537,593.04,591.9,3.076]
[1744521485559,0.29370187,593.03,591.9,3.076]
[1744521487264,0.33724537,593.04,591.9,3.076]
[1744521488265,0.31020137,593.03,591.9,3.076]
[1744521488666,0.29376881,593.02,591.9,3.076]
[1744521488865,0.31020137,593.01,591.9,3.076]
[1744521489667,0.31020137,593.01,591.91,0.30208586]
[1744521489967,0.31022355,593.0,591.92,0.30208181]
[1744521490168,0.31022355,592.99,591.9,3.076]
[1744521490360,0.31022355,593.03,591.9,3.076]
[1744521490565,0.29377129,592.99,591.91,0.30208333]
[1744521490766,0.31022355,592.98,591.91,0.30208333]
[1744521491468,0.29377129,592.99,591.9,3.36977129]
[1744521491769,0.31021602,592.98,591.91,0.30207432]
[1744521492570,0.31021602,592.98,591.92,0.33788349]
[1744521492763,0.31021602,592.98,591.93,0.30207432]
[1744521492967,0.29377129,592.99,591.94,0.33787208]
[1744521493165,0.31018958,592.98,591.95,0.30204797]
[1744521493368,0.31018958,592.98,591.95,0.63991434]
[1744521493571,0.31018958,593.03,591.96,0.30204797]
[1744521493766,0.31018958,593.02,591.95,0.33786637]
[1744521493971,0.31018958,593.03,591.95,0.33786637]
[1744521494169,0.31018958,593.01,591.95,0.33786637]
[1744521494365,0.31018958,593.0,591.95,0.33786637]
[1744521494567,0.33724537,593.04,591.95,0.33786637]
[1744521494771,0.31019325,593.03,591.95,0.33786637]
[1744521496770,0.31019325,593.03,591.96,0.30205132]
[1744521496969,0.31019325,593.03,591.95,0.33786637]
[1744521499470,0.33724537,593.04,591.95,0.33786637]
[1744521499670,0.29377749,593.02,591.95,0.33786637]
[1744521499871,0.31023268,593.01,591.95,0.33786637]
[1744521500777,0.31023268,593.01,591.96,0.463]
[1744521501077,0.29377749,593.02,591.96,0.463]
[1744521501277,0.31022865,593.01,591.97,0.506]
[1744521502474,0.31022865,593.0,591.97,0.506]
[1744521502778,0.33724537,593.04,591.97,0.506]
[1744521502779,0.31022865,593.03,591.97,0.506]
[1744521502978,0.31022865,593.02,591.97,0.506]
[1744521503177,0.33724537,593.04,591.97,0.506]
[1744521503374,0.31023383,593.03,591.97,0.506]
[1744521503573,0.60396916,593.03,591.97,0.506]
[1744521503774,0.31023383,593.02,591.97,0.506]
[1744521504080,0.31023383,593.02,591.98,0.548]
[1744521504274,0.29373533,593.03,591.98,0.548]
[1744521504475,0.31023744,593.02,591.98,0.548]
[1744521505480,0.31023744,593.03,591.98,0.548]
[1744521506482,0.29377501,593.02,591.98,0.548]
[1744521506675,0.31023744,593.01,591.98,0.548]
[1744521507584,0.29377501,593.02,591.98,0.548]
[1744521507884,0.31023098,593.01,591.98,0.548]
[1744521508478,0.31023098,593.03,591.98,0.548]
[1744521508683,0.29377749,593.0,591.98,0.548]
[1744521508882,0.31023098,592.99,591.98,0.548]
[1744521509184,0.29377749,593.0,591.98,0.548]
[1744521509482,0.31023146,592.99,591.98,0.548]
[1744521511486,0.31023146,593.03,591.98,0.548]
[1744521511785,0.31023146,593.02,591.98,0.548]
[1744521511986,0.31023146,593.03,591.98,0.548]
[1744521512187,0.31023146,593.02,591.98,0.548]
[1744521512383,0.33724537,593.04,591.98,0.548]
[1744521512688,0.29377501,593.01,591.98,0.548]
[1744521512889,0.31023154,593.0,591.98,0.548]
[1744521514088,0.29377501,593.01,591.98,0.548]
[1744521514291,0.3102314,593.0,591.98,0.548]
[1744521514590,0.3102314,593.03,591.98,0.548]
[1744521514781,0.3102314,593.02,591.98,0.548]
[1744521514986,0.3102314,593.03,591.98,0.548]
[1744521515182,0.3102314,593.02,591.98,0.548]
[1744521515387,0.3102314,593.03,591.98,0.548]
[1744521515589,0.33724537,593.04,591.98,0.548]
[1744521515781,0.29377501,593.01,591.98,0.548]
[1744521515986,0.31023869,593.0,591.98,0.548]
[1744521517282,0.33724537,593.04,591.98,0.548]
[1744521517488,0.31023816,593.03,591.99,0.30209636]
[1744521517683,0.60398713,593.03,591.99,0.30209636]
[1744521517887,0.31023816,593.02,591.99,0.30209636]
[1744521518389,0.31023816,593.02,592.0,0.504]
[1744521520588,0.33724537,593.04,592.0,0.504]
[1744521520783,0.29377377,593.01,592.0,0.504]
[1744521520983,0.31023717,593.0,592.0,0.504]
[1744521522190,0.29377377,593.01,592.0,0.504]
[1744521522389,0.31023762,593.0,592.0,0.504]
[1744521522591,0.31023762,593.0,592.01,0.544]
[1744521523492,0.31023762,593.03,592.01,0.544]
[1744521523792,0.33724537,593.04,592.02,0.652]
[1744521524112,0.33724537,593.04,592.02,1.354]
[1744521524589,0.29374029,593.03,592.02,1.354]
[1744521526293,0.33724537,593.04,592.02,1.354]
[1744521527495,0.29366593,593.03,592.02,1.354]
[1744521528391,0.31018521,593.02,592.02,1.354]
[1744521528991,0.31019764,593.01,592.02,1.354]
[1744521529195,0.31019764,593.0,592.02,1.354]
[1744521529497,0.31019764,592.99,592.02,1.354]
[1744521529691,0.31019764,593.0,592.02,1.354]
[1744521529895,0.29374525,593.01,592.02,1.354]
[1744521530091,0.31019404,593.0,592.02,1.354]
[1744521532095,0.29374525,593.01,592.02,1.354]
[1744521532293,0.31019373,593.0,592.02,1.354]
[1744521532497,0.31019373,592.99,592.02,1.354]
[1744521532697,0.31019373,593.0,592.02,2.006]
[1744521532897,0.31019373,592.99,592.02,2.006]
[1744521533098,0.31019373,593.0,592.02,2.006]
[1744521535295,0.31019384,592.99,592.02,2.006]
[1744521535493,0.31019384,593.03,592.02,2.006]
[1744521535695,0.31019384,593.02,592.02,2.006]
[1744521535898,0.31019384,593.03,592.02,2.006]
[1744521536096,0.31019384,593.02,592.02,2.006]
[1744521536297,0.31019384,593.03,592.02,2.006]
[1744521536495,0.31019384,593.02,592.02,2.006]
[1744521536698,0.29374401,593.01,592.02,2.006]
[1744521536897,0.31019442,593.0,592.02,2.006]
[1744521538203,0.31019442,593.0,592.03,0.30204491]
[1744521538603,0.31019442,593.03,592.03,0.30204491]
[1744521539597,0.29374401,593.02,592.02,2.006]
[1744521541305,0.33724537,593.04,592.02,2.006]
[1744521541608,0.33724537,593.04,592.02,2.564]
[1744521542105,0.31017914,593.03,592.02,2.564]
[1744521542612,0.29376385,593.02,592.02,2.564]
[1744521542913,0.31022874,593.01,592.02,2.564]
[1744521544613,0.31022874,593.0,592.02,2.564]
[1744521544912,0.31022874,593.03,592.02,2.564]
[1744521545108,0.31022874,593.02,592.02,2.564]
[1744521545308,0.31022874,593.03,592.02,2.564]
[1744521545514,0.29377377,593.01,592.02,3.232]
[1744521545717,0.31022874,593.0,592.02,3.232]
[1744521545910,0.29377377,593.01,592.02,3.232]
[1744521545911,0.31023886,592.99,592.02,3.232]
[1744521546111,0.31023886,593.0,592.02,3.232]
[1744521546315,0.31023886,592.99,592.02,3.232]
[1744521546513,0.31023886,593.0,592.02,3.232]
[1744521546711,0.31023886,592.99,592.02,3.232]
[1744521547017,0.31023886,592.98,592.02,3.232]
[1744521547217,0.31023886,592.97,592.02,3.232]
[1744521547411,0.31024386,592.96,592.02,3.232]
[1744521547614,0.31024386,593.03,592.02,3.232]
[1744521547814,0.31024386,593.02,592.02,3.232]
[1744521548011,0.31024386,593.03,592.02,3.232]
[1744521548212,0.31024386,593.02,592.02,3.232]
[1744521548516,0.60401763,593.02,592.02,3.232]
[1744521548716,0.31024386,593.01,592.02,3.232]
[1744521550514,0.31024386,593.02,592.02,3.232]
[1744521550720,0.64750061,593.02,592.02,3.232]
[1744521550919,0.31024386,593.01,592.02,3.232]
[1744521551519,0.29377873,593.0,592.02,3.232]
[1744521551716,0.31024386,592.99,592.02,3.232]
[1744521552122,0.31023905,592.98,592.02,3.232]
[1744521552419,0.31023905,592.97,592.02,3.232]
[1744521552621,0.31023905,592.99,592.02,3.232]
[1744521553521,0.33725675,593.02,592.02,3.232]
[1744521553722,0.31023889,593.01,592.02,3.232]
[1744521554415,0.31023889,593.01,592.02,3.666]
[1744521554620,0.29377873,593.0,592.02,3.666]
[1744521554820,0.31023889,592.99,592.02,3.666]
[1744521556718,0.29377873,593.0,592.02,3.666]
[1744521556918,0.31023734,592.99,592.02,3.666]
[1744521559523,0.31023734,593.01,592.02,3.666]
[1744521559823,0.31023734,593.0,592.02,3.666]
[1744521560023,0.31023734,593.01,592.02,3.666]
[1744521560218,0.31023734,593.0,592.02,3.666]
[1744521560418,0.31023734,593.01,592.02,3.666]
[1744521560724,0.29377873,593.0,592.02,3.666]
[1744521560924,0.31023734,592.99,592.02,3.666]
[1744521562531,0.31023734,593.01,592.02,3.666]
[1744521562722,0.31023734,593.0,592.02,3.666]
[1744521563026,0.31023734,593.01,592.02,3.666]
[1744521563226,0.31023734,593.0,592.02,3.666]
[1744521563427,0.31023734,593.01,592.02,3.666]
[1744521563727,0.29377873,593.0,592.02,3.666]
[1744521563921,0.31023734,592.99,592.02,3.666]
[1744521565623,0.29378121,592.98,592.02,3.666]
[1744521566027,0.31023734,592.97,592.02,3.666]
[1744521566228,0.29378121,592.98,592.02,3.666]
[1744521566528,0.31022491,592.97,592.02,3.666]
[1744521568628,0.6040086,592.96,592.02,3.666]
[1744521568822,0.31022491,592.95,592.02,3.666]
[1744521571523,0.31022491,593.01,592.02,3.666]
[1744521571728,0.29378617,592.94,592.02,3.666]
[1744521571928,0.31022491,592.93,592.02,3.666]
[1744521572128,0.31022491,593.01,592.02,3.666]
[1744521572631,0.29377873,593.0,592.02,3.666]
[1744521572928,0.31022491,592.99,592.02,3.666]
[1744521574629,0.31022491,593.01,592.02,3.666]
[1744521574828,0.31022491,593.0,592.02,3.666]
[1744521575028,0.31022491,593.01,592.02,3.666]
[1744521575523,0.33725675,593.02,592.02,3.666]
[1744521575723,0.29375393,593.0,592.02,3.666]
[1744521580337,0.33725675,593.02,592.02,3.666]
[1744521581636,0.29364115,593.01,592.02,3.666]
[1744521583334,0.33725675,593.02,592.02,3.666]
[1744521583729,0.29375145,593.0,592.03,0.30204046]
[1744521583930,0.29375145,593.0,592.02,3.666]
[1744521584129,0.29375145,593.0,591.95,0.33786637]
[1744521584936,0.29375145,593.0,591.96,0.30203408]
[1744521586536,0.29375145,593.0,591.97,0.639]
[1744521586737,0.29375145,593.0,591.98,0.30203408]
[1744521587038,0.29375145,593.0,591.99,1.178]
[1744521587839,0.29375145,593.0,592.0,0.475]
[1744521592349,0.33725675,593.02,592.0,0.475]
[1744521592543,0.29375517,592.99,592.0,0.475]
[1744521593837,0.31018299,592.98,592.0,0.475]
[1744521595045,0.29375517,592.99,592.0,0.475]
[1744521595238,0.31018086,592.98,592.0,0.475]
[1744521595646,0.31018086,593.01,592.0,0.475]
[1744521595842,0.29375889,592.99,592.0,0.475]
[1744521596041,0.31018004,592.98,592.0,0.475]
[1744521596738,0.29375889,592.99,592.0,0.475]
[1744521596941,0.31018677,592.98,592.0,0.475]
[1744521598243,0.29375889,592.99,592.0,0.475]
[1744521598442,0.31019383,592.98,592.0,0.475]
[1744521598648,0.29375517,592.99,592.0,0.475]
[1744521598846,0.3101935,592.98,592.0,0.475]
[1744521599141,0.29375517,592.99,592.0,0.475]
[1744521599349,0.31017995,592.98,592.01,0.30203837]
[1744521599746,0.31017995,592.98,592.0,0.475]
[1744521600047,0.31017995,592.98,592.01,0.30203851]
[1744521601147,0.29375517,592.99,592.0,0.475]
[1744521601343,0.31018344,592.97,592.01,0.30204184]
[1744521601541,0.31018344,592.96,592.01,0.30204184]
[1744521601746,0.31018344,592.98,592.01,0.30204184]
[1744521601945,0.31018344,592.97,592.01,0.30204184]
[1744521602143,0.31018344,592.98,592.01,0.30204184]
[1744521602348,0.31018344,592.97,592.01,0.30204184]
[1744521602543,0.31018344,593.01,592.01,0.30204184]
[1744521602747,0.33725675,593.02,592.0,0.475]
[1744521603949,0.33725675,593.02,592.01,0.30199399]
[1744521604245,0.33725675,593.02,592.0,0.475]
[1744521604450,0.33725675,593.02,592.01,0.3019761]
[1744521607447,0.33725675,593.02,592.0,0.475]
[1744521607651,0.33725675,593.02,592.01,0.30198278]
[1744521608752,0.33725675,593.02,592.02,0.508]
[1744521610059,0.33725675,593.02,592.02,1.053]
[1744521610354,0.33725675,593.02,592.02,1.679]
[1744521612563,0.33725675,593.02,592.02,2.01682642]
[1744521612761,0.33725675,593.02,592.03,0.33782071]
[1744521615263,0.33725675,593.02,592.03,0.79982071]
[1744521617562,0.33725675,593.02,592.03,1.39982071]
[1744521618667,0.33725675,593.02,592.04,0.30197479]
[1744521619662,0.31011557,593.01,592.04,0.30197479]
[1744521620366,0.31011587,593.0,592.05,0.30197458]
[1744521620563,0.31011587,592.99,592.06,0.30197458]
[1744521620762,0.31011587,593.01,592.04,0.30197458]
[1744521620967,0.31011587,593.0,592.05,0.30197458]
[1744521621269,0.31011587,592.99,592.06,0.30197458]
[1744521621571,0.31011587,593.01,592.04,0.30197458]
[1744521621768,0.31011587,593.0,592.05,0.30197458]
[1744521621968,0.33725675,593.02,592.03,1.39982071]
[1744521624265,0.31015091,593.01,592.04,0.3020095]
[1744521624570,0.31015091,593.01,592.03,1.39982071]
[1744521625676,0.29375021,593.0,592.03,1.39982071]
[1744521625872,0.31015091,592.99,592.03,1.39982071]
[1744521628581,0.31015091,593.01,592.03,1.39982071]
[1744521628778,0.31015091,593.0,592.03,1.39982071]
[1744521628979,0.31015091,593.01,592.03,1.39982071]
[1744521629176,0.31015091,593.0,592.03,1.39982071]
[1744521629381,0.31015091,592.99,592.03,1.39982071]
[1744521629682,0.31015091,592.98,592.03,1.84382071]
[1744521631485,0.33725675,593.02,592.03,1.84382071]
[1744521631785,0.31017885,593.01,592.03,1.84382071]
[1744521632079,0.33725675,593.02,592.03,1.84382071]
[1744521632583,0.29371922,593.01,592.03,1.84382071]
[1744521635086,0.29371922,593.01,592.03,2.36482071]
[1744521635688,0.31020131,593.0,592.03,2.36482071]
[1744521635987,0.29371922,593.01,592.03,2.36482071]
[1744521636287,0.31021085,593.0,592.03,2.36482071]
[1744521636683,0.31021085,593.0,592.03,3.03782071]
[1744521637681,0.29377625,592.99,592.03,3.03782071]
[1744521637886,0.31021085,592.98,592.03,3.03782071]
[1744521640792,0.29377873,592.97,592.03,3.03782071]
[1744521641186,0.31021085,592.96,592.03,3.03782071]
[1744521642894,0.29377873,592.97,592.03,3.03782071]
[1744521643094,0.31020622,592.96,592.03,3.03782071]
[1744521643295,0.31020622,592.96,592.04,0.30204711]
[1744521643894,0.31020622,592.96,592.03,3.03782071]
[1744521644091,0.31020622,592.96,592.04,0.30205084]
[1744521645696,0.31020622,592.96,592.03,1.97582071]
[1744521646191,0.29377873,592.97,592.03,1.97582071]
[1744521646397,0.31020335,592.96,592.04,0.30206172]
[1744521646697,0.31020335,592.95,592.04,0.30206172]
[1744521647793,0.29375517,592.96,592.04,0.656]
[1744521647996,0.3101927,592.95,592.05,0.3020511]
[1744521648991,0.3101927,592.95,592.05,1.1790511]
[1744521649196,0.3101927,592.95,592.06,0.3020511]
[1744521650299,0.29375517,592.96,592.05,0.877]
[1744521652401,0.33725675,593.02,592.05,0.877]
[1744521654905,0.33725675,593.02,592.05,1.359]
[1744521656506,0.33725675,593.02,592.05,1.957]
[1744521657606,1.28024234,593.68,592.06,0.3378036]
[1744521657806,0.33689317,593.66,592.06,0.3378036]
[1744521658006,0.31011343,593.65,592.06,0.3378036]
[1744521658206,0.33691019,593.63,592.06,0.3378036]
[1744521658406,0.31011343,593.62,592.06,0.3378036]
[1744521658603,0.33692722,593.6,592.06,0.3378036]
[1744521658802,0.31011343,593.59,592.06,0.3378036]
[1744521659002,0.33694425,593.57,592.06,0.3378036]
[1744521659301,0.31011343,593.56,592.06,0.3378036]
[1744521659505,0.31011343,593.56,592.06,1.0458036]
[1744521660008,0.33696128,593.54,592.06,1.0458036]
[1744521660207,0.31011343,593.53,592.06,1.0458036]
[1744521660408,0.33697831,593.51,592.06,1.0458036]
[1744521660708,0.31011343,593.5,592.06,1.0458036]
[1744521660905,0.33699534,593.48,592.06,1.0458036]
[1744521661206,0.31011343,593.47,592.06,1.0458036]
[1744521661405,0.33701238,593.45,592.06,1.0458036]
[1744521661601,0.31011343,593.44,592.06,1.0458036]
[1744521661806,0.33702374,593.43,592.06,1.0458036]